bitfinex-derivatives/quotes_ETHF0:USTF0_20241027
["timestamp","ask_amount","ask_price","bid_price","bid_amount"]
[1730033407916,2.25571,2480.3,2479.8,3.2078]
[1730033408122,0.40368,2480.1,2480.0,0.40367]
[1730033408723,1.2466,2480.3,2479.8,3.2078]
[1730033408926,0.40369,2480.0,2479.9,0.40369]
[1730033409219,1.00914,2480.2,2479.8,3.2078]
[1730033409417,0.40369,2480.0,2479.9,0.4037]
[1730033410325,1.00914,2480.2,2479.8,3.2078]
[1730033410526,0.4037,2480.0,2479.9,0.4037]
[1730033410724,1.00914,2480.2,2479.8,3.2078]
[1730033410914,1.2466,2480.3,2479.5,4.26003948]
[1730033411120,0.40372,2479.8,2479.7,0.40372]
[1730033411315,1.00916,2480.2,2479.5,4.21721]
[1730033411520,0.40371,2479.9,2479.8,0.40371]
[1730033411922,1.00918,2480.1,2479.5,4.21721]
[1730033412122,0.40372,2479.8,2479.7,0.40372]
[1730033412526,0.40371,2479.9,2479.8,0.40371]
[1730033413932,0.4037,2480.0,2479.9,0.4037]
[1730033416624,0.40372,2479.9,2479.8,0.4037]
[1730033421230,1.2466,2480.3,2479.6,1.48083948]
[1730033421428,0.40369,2480.1,2480.0,0.40367]
[1730033424533,1.2466,2480.3,2479.9,0.4501]
[1730033424734,0.40367,2480.2,2480.1,0.40366]
[1730033426836,0.40368,2480.1,2480.0,0.40368]
[1730033427134,0.40366,2480.2,2480.1,0.40366]
[1730033428231,1.2466,2480.3,2479.8,3.2078]
[1730033428535,1.2466,2480.3,2479.5,4.26003948]
[1730033428536,1.00923,2480.0,2479.5,4.26003948]
[1730033428735,0.40375,2479.6,2479.5,4.66380948]
[1730033428929,0.40375,2479.6,2479.5,3.61157]
[1730033429439,0.40378,2479.4,2479.3,1.45602948]
[1730033429732,1.89935,2479.7,2479.2,4.78615922]
[1730033429733,0.4403,2479.5,2479.2,4.26003948]
[1730033429938,0.4403,2479.5,2479.0,1.45606948]
[1730033430238,1.00956,2479.2,2478.8,1.05223948]
[1730033430441,5.5273,2479.1,2478.6,0.40391]
[1730033430737,0.40387,2478.9,2478.7,0.40389]
[1730033430942,0.40387,2478.9,2478.8,0.40388]
[1730033431234,1.71374,2479.1,2478.6,2.06202948]
[1730033431437,1.71374,2479.1,2479.0,0.40385]
[1730033431834,1.3099,2479.1,2479.0,0.40385]
[1730033432031,0.4233,2479.1,2479.0,0.40385]
[1730033433041,0.8824,2479.4,2478.8,3.2078]
[1730033433239,1.3351,2479.4,2479.1,0.40382]
[1730033433442,0.40382,2479.2,2479.1,0.40383]
[1730033434327,1.73889,2479.4,2479.2,0.4038]
[1730033434531,0.4038,2479.3,2478.9,1.00966]
[1730033434838,0.4038,2479.3,2479.2,0.40381]
[1730033435336,1.3351,2479.4,2478.8,3.2078]
[1730033435634,0.40382,2479.2,2479.1,0.40383]
[1730033435943,0.40382,2479.2,2479.0,0.40384]
[1730033436535,1.3351,2479.4,2479.1,0.40383]
[1730033437046,0.40381,2479.3,2479.1,0.40383]
[1730033440642,0.40382,2479.2,2479.0,0.40383]
[1730033441335,0.40382,2479.2,2479.1,0.40383]
[1730033441536,1.3351,2479.4,2478.9,4.21746]
[1730033441736,1.3351,2479.4,2479.3,0.4038]
[1730033443043,0.40372,2479.8,2479.4,1.00946]
[1730033443243,0.40374,2479.7,2479.6,0.40374]
[1730033443435,0.8577,2479.9,2479.6,0.40374]
[1730033443633,0.8577,2479.9,2479.3,1.0095]
[1730033443634,0.40373,2479.8,2479.4,1.00946]
[1730033443835,0.40373,2479.8,2479.6,0.40374]
[1730033445044,0.8577,2479.9,2479.3,1.0095]
[1730033445045,0.40374,2479.7,2479.5,0.40375]
[1730033445245,0.40374,2479.7,2479.6,0.40375]
[1730033446745,0.40373,2479.8,2479.6,0.40375]
[1730033447143,0.40373,2479.8,2479.7,0.40373]
[1730033447340,0.40373,2479.8,2479.6,0.40374]
[1730033447644,0.40373,2479.7,2479.6,0.40374]
[1730033447836,0.40373,2479.8,2479.7,0.40373]
[1730033448036,0.8577,2479.9,2479.7,0.40373]
[1730033448239,1.26141,2479.9,2479.7,0.40373]
[1730033448548,0.40374,2479.7,2479.6,0.40375]
[1730033448737,0.40374,2479.7,2479.5,3.61155]
[1730033448943,0.40374,2479.7,2479.6,0.40375]
[1730033449245,0.8577,2479.9,2479.5,3.2078]
[1730033449442,0.40373,2479.7,2479.6,0.40374]
[1730033450043,0.8577,2479.9,2479.6,0.40374]
[1730033450243,0.40373,2479.8,2479.6,0.40374]
[1730033450455,0.40373,2479.7,2479.6,0.40374]
[1730033450647,0.40373,2479.8,2479.6,0.40375]
[1730033450845,0.8577,2479.9,2479.5,3.2078]
[1730033451046,0.40375,2479.6,2479.4,0.40377]
[1730033451250,0.82588,2479.5,2479.3,0.40379]
[1730033451447,1.25768,2479.4,2479.2,3.2078]
[1730033451646,1.25768,2479.4,2479.2,3.6116]
[1730033452052,1.25768,2479.4,2479.3,0.4038]
[1730033452351,0.4038,2479.3,2479.2,3.61161]
[1730033452550,0.8539,2479.4,2479.2,3.2078]
[1730033452747,0.8539,2479.4,2479.2,3.6116]
[1730033452949,0.4038,2479.3,2479.2,3.2078]
[1730033453150,0.4038,2479.3,2479.2,3.61161]
[1730033457960,0.8539,2479.4,2479.2,3.2078]
[1730033458144,0.4038,2479.3,2479.2,3.6116]
[1730033458347,0.8539,2479.4,2479.2,3.2078]
[1730033458558,1.25769,2479.4,2479.3,0.4038]
[1730033458752,0.8539,2479.4,2479.2,3.2078]
[1730033459247,0.4038,2479.3,2479.2,3.2078]
[1730033459448,0.8539,2479.4,2479.1,0.40383]
[1730033459752,0.40381,2479.2,2479.1,0.40383]
[1730033460148,0.8539,2479.4,2478.9,3.2078]
[1730033460354,0.40383,2479.1,2479.0,0.40383]
[1730033460549,0.40384,2479.1,2479.0,0.40384]
[1730033462362,0.40385,2479.0,2478.9,3.61165]
[1730033462663,0.85435,2479.0,2478.9,3.61165]
[1730033462957,0.85435,2479.0,2478.9,0.40385]
[1730033463163,0.4505,2479.0,2478.9,3.61165]
[1730033464160,0.4505,2479.0,2478.9,0.40385]
[1730033464468,0.4505,2479.0,2478.9,3.61165]
[1730033465162,0.4262,2479.4,2478.9,3.2078]
[1730033465360,0.85401,2479.3,2479.2,0.40381]
[1730033465855,0.85401,2479.3,2478.9,4.21746]
[1730033465856,0.40382,2479.2,2479.1,0.40382]
[1730033467751,0.40384,2479.1,2479.0,0.40383]
[1730033467956,0.40385,2479.0,2478.9,3.2078]
[1730033468162,0.40385,2479.0,2478.9,3.61166]
[1730033468460,0.40385,2479.0,2478.9,0.40386]
[1730033469063,4.0608,2479.2,2478.6,4.21759]
[1730033469363,0.8774,2478.9,2478.8,0.40387]
[1730033469574,0.40384,2479.1,2478.6,4.21759]
[1730033469865,0.85444,2479.1,2479.0,0.40385]
[1730033471755,0.85444,2479.1,2478.7,1.00975]
[1730033471756,0.4506,2479.1,2478.7,1.00975]
[1730033471956,0.40388,2478.9,2478.8,0.40386]
[1730033472871,0.40388,2478.9,2478.5,0.4365]
[1730033472872,7.2422,2478.9,2478.5,0.4365]
[1730033473170,0.40391,2478.7,2478.6,0.4039]
[1730033473671,0.84261,2478.7,2478.6,0.4039]
[1730033473967,0.4387,2478.7,2478.3,5.70296495]
[1730033474163,0.40393,2478.6,2478.5,0.40391]
[1730033474370,0.4387,2478.7,2478.3,4.69306495]
[1730033474566,0.40395,2478.5,2478.4,0.40393]
[1730033475264,0.4387,2478.7,2478.2,1.05016495]
[1730033475570,0.40396,2478.3,2478.2,1.05016495]
[1730033475870,0.40398,2478.2,2478.1,0.40398]
[1730033476164,4.21759,2478.6,2477.9,1.45418495]
[1730033476165,1.00992,2478.3,2477.9,1.45418495]
[1730033476358,1.00987,2478.4,2477.7,5.09486495]
[1730033476359,0.40401,2478.1,2477.7,5.09486495]
[1730033476565,0.40401,2478.1,2478.0,0.40401]
[1730033476870,0.40402,2478.0,2477.9,0.40402]
[1730033477273,0.40403,2477.9,2477.8,0.40404]
[1730033477471,0.40403,2477.9,2477.7,4.02615]
[1730033477772,1.3385,2478.2,2477.8,0.40404]
[1730033478062,1.3385,2478.2,2477.7,3.6221]
[1730033478471,1.3385,2478.2,2477.8,0.40404]
[1730033478472,0.40404,2477.9,2477.8,0.40404]
[1730033479275,2.34846,2478.2,2477.7,3.6221]
[1730033479578,0.40404,2477.8,2477.7,3.61185]
[1730033479874,0.40404,2477.9,2477.8,0.40404]
[1730033480170,0.40404,2477.8,2477.7,0.40405]
[1730033480377,1.00999,2478.1,2477.6,0.40407]
[1730033480378,0.40408,2477.7,2477.6,0.40407]
[1730033480674,0.40407,2477.7,2477.6,0.40407]
[1730033481569,0.40407,2477.7,2477.6,0.40408]
[1730033481771,0.40408,2477.6,2477.5,0.82669]
[1730033481969,0.40407,2477.7,2477.6,0.40408]
[1730033482160,0.40407,2477.7,2477.5,0.4226]
[1730033482361,0.40408,2477.6,2477.4,3.6298]
[1730033482575,0.40408,2477.6,2477.5,0.40409]
[1730033482873,0.8629,2477.7,2477.5,0.40409]
[1730033483071,1.26696,2477.7,2477.5,0.40408]
[1730033483369,1.26696,2477.7,2477.6,0.40408]
[1730033484071,1.26696,2477.7,2477.5,0.40408]
[1730033484269,1.26696,2477.7,2477.5,0.40409]
[1730033484578,1.26696,2477.7,2477.6,0.40408]
[1730033485479,0.8629,2477.7,2477.6,0.40408]
[1730033485678,0.4326,2477.8,2477.7,0.40406]
[1730033485679,0.83665,2477.8,2477.7,0.40406]
[1730033486672,0.40402,2478.0,2477.9,0.40403]
[1730033486974,0.40402,2478.0,2477.8,0.84733]
[1730033487174,0.40402,2478.0,2477.9,0.40403]
[1730033488083,0.40402,2478.0,2477.9,0.84533]
[1730033489677,1.66981,2478.1,2478.0,0.40401]
[1730033491178,0.40401,2478.0,2477.9,0.4413]
[1730033491382,0.40401,2478.0,2477.9,0.40403]
[1730033491689,0.4128,2478.1,2477.7,1.01016]
[1730033491979,0.8168,2478.1,2478.0,0.40401]
[1730033493092,0.81679,2478.1,2478.0,0.40401]
[1730033493286,0.4128,2478.1,2478.0,0.40401]
[1730033493480,0.40399,2478.2,2477.8,1.42349]
[1730033493787,0.40399,2478.2,2478.1,0.40399]
[1730033500688,0.8603,2478.3,2477.9,1.01006]
[1730033500993,0.8603,2478.3,2478.2,0.40398]
[1730033500994,0.85447,2478.3,2478.2,0.40398]
[1730033504577,2.28184,2478.5,2478.2,0.40398]
[1730033504578,0.83094,2478.5,2478.4,0.40395]
[1730033504784,5.71034,2478.5,2478.4,0.40395]
[1730033505381,0.83094,2478.5,2478.4,0.40395]
[1730033510592,0.427,2478.5,2478.2,0.4095]
[1730033510793,0.40397,2478.4,2478.3,0.40395]
[1730033511486,0.40397,2478.4,2478.1,0.40398]
[1730033511487,0.40399,2478.2,2478.1,0.40398]
[1730033511888,0.40399,2478.1,2478.0,3.6118]
[1730033512083,0.82749,2478.1,2478.0,3.6118]
[1730033513094,0.82749,2478.1,2478.0,3.61181]
[1730033513793,0.82749,2478.1,2478.0,0.40401]
[1730033517394,0.4235,2478.1,2478.0,0.40401]
[1730033517789,0.845,2478.4,2478.1,0.40399]
[1730033517790,0.40398,2478.2,2478.1,0.40399]
[1730033518093,0.404,2478.1,2477.9,0.40401]
[1730033518298,0.40399,2478.2,2478.0,0.404]
[1730033518792,0.40399,2478.1,2478.0,0.404]
[1730033521495,0.40399,2478.1,2477.9,0.40401]
[1730033522089,0.40399,2478.1,2477.9,0.40403]
[1730033522289,0.40399,2478.1,2478.0,0.40401]
[1730033522997,0.40399,2478.1,2477.9,0.40401]
[1730033523800,0.40399,2478.1,2478.0,0.40401]
[1730033524297,0.40401,2478.0,2477.9,4.66198495]
[1730033524494,1.42941,2478.3,2477.9,6.46056113]
[1730033524495,0.40401,2478.1,2477.9,6.46056113]
[1730033524698,0.40401,2478.1,2477.9,4.66198495]
[1730033524898,0.40401,2478.1,2478.0,0.40401]
[1730033527499,0.40401,2478.1,2478.0,1.45417495]
[1730033527796,0.40401,2478.1,2478.0,0.40401]
[1730033528002,0.40399,2478.1,2477.9,4.25796495]
[1730033528198,0.83161,2478.0,2477.9,4.25796495]
[1730033528403,0.83161,2478.0,2477.9,4.66199495]
[1730033529090,0.83161,2478.0,2477.9,4.25796495]
[1730033529496,0.83161,2478.0,2477.9,4.66199495]
[1730033530805,0.83161,2478.0,2477.9,4.25796495]
[1730033531198,0.83161,2478.0,2477.9,4.66199495]
[1730033531806,0.83161,2478.0,2477.9,3.2078]
[1730033533103,0.83161,2478.0,2477.9,3.61183]
[1730033533501,0.83161,2478.0,2477.9,0.40403]
[1730033533804,0.4276,2478.0,2477.9,0.40403]
[1730033534110,0.83161,2478.0,2477.9,0.40403]
[1730033534304,0.4276,2478.0,2477.8,1.48126495]
[1730033534607,0.83593,2477.9,2477.8,1.88530495]
[1730033535008,0.4319,2477.9,2477.8,1.88530495]
[1730033535205,0.4319,2477.9,2477.8,3.68512671]
[1730033535599,0.83593,2477.9,2477.8,4.31680759]
[1730033535800,0.83593,2477.9,2477.8,2.643322]
[1730033536009,0.4319,2477.9,2477.8,4.44314047]
[1730033537008,0.83593,2477.9,2477.8,4.44314047]
[1730033537813,0.4319,2477.9,2477.8,4.44314047]
[1730033538608,0.4319,2477.9,2477.8,4.44370046]
[1730033538805,0.83593,2477.9,2477.8,4.96878294]
[1730033540005,0.83593,2477.9,2477.8,4.97656941]
[1730033540209,0.83593,2477.9,2477.8,3.39353551]
[1730033540512,0.83593,2477.9,2477.8,4.97658972]
[1730033541017,0.83593,2477.9,2477.8,4.97660338]
[1730033542513,0.4319,2477.9,2477.8,4.97660338]
[1730033543317,0.4319,2477.9,2477.8,4.97686351]
[1730033543817,0.83593,2477.9,2477.8,3.3836928]
[1730033544119,0.83593,2477.9,2477.8,1.05558392]
[1730033544409,0.83593,2477.9,2477.6,1.58305421]
[1730033544410,0.40404,2477.8,2477.7,1.05558392]
[1730033544617,0.81954,2477.8,2477.7,1.05558392]
[1730033545912,0.40406,2477.7,2477.6,1.45965392]
[1730033549317,0.81956,2477.8,2477.6,0.40407]
[1730033549521,0.4155,2477.8,2477.5,1.05558392]
[1730033549724,0.40407,2477.7,2477.6,0.40407]
[1730033551419,0.4155,2477.8,2477.5,1.05558392]
[1730033551615,0.81956,2477.8,2477.6,0.40406]
[1730033553220,0.4155,2477.8,2477.7,0.40406]
[1730033553421,3.2078,2478.4,2478.1,0.40398]
[1730033553718,0.404,2478.1,2478.0,0.40401]
[1730033554220,1.285,2478.3,2478.0,0.40401]
[1730033554420,0.40399,2478.2,2478.1,0.40399]
[1730033554918,1.68897,2478.3,2478.1,1.45956392]
[1730033555219,0.40398,2478.2,2478.1,1.45957392]
[1730033555515,0.40398,2478.2,2478.1,1.05558392]
[1730033556516,0.40398,2478.2,2478.1,1.45957392]
[1730033556724,0.40398,2478.2,2478.1,1.05558392]
[1730033557119,0.40398,2478.2,2478.1,1.45957392]
[1730033557321,0.40398,2478.2,2478.1,1.05558392]
[1730033559326,0.82398,2478.2,2478.1,1.05558392]
[1730033563228,0.40398,2478.2,2478.1,1.05558392]
[1730033569026,0.40399,2478.1,2478.0,3.2078]
[1730033571529,1.86891,2478.3,2477.9,3.2078]
[1730033571735,0.85063,2478.0,2477.9,3.2078]
[1730033571933,0.40404,2477.8,2477.6,5.52405392]
[1730033572337,0.40404,2477.8,2477.6,9.56005392]
[1730033573931,0.40404,2477.8,2477.6,6.35225392]
[1730033574130,0.40404,2477.8,2477.6,2.31625392]
[1730033575728,1.24874,2477.9,2477.7,0.40406]
[1730033576129,1.24874,2477.9,2477.8,1.05558392]
[1730033576735,0.8447,2477.9,2477.7,1.05558392]
[1730033577035,0.8447,2477.9,2477.7,1.45964392]
[1730033577036,1.24874,2477.9,2477.7,1.45964392]
[1730033577431,1.24874,2477.9,2477.8,1.05558392]
[1730033577738,1.24874,2477.9,2477.7,1.45964392]
[1730033579137,0.40404,2477.8,2477.7,1.05558392]
[1730033579333,1.24874,2477.9,2477.7,3.27603958]
[1730033579535,1.24874,2477.9,2477.7,1.45964392]
[1730033580542,0.40404,2477.8,2477.7,1.45964392]
[1730033580838,0.40404,2477.8,2477.7,2.87194258]
[1730033582635,0.40404,2477.8,2477.7,3.27600258]
[1730033582837,0.8447,2477.9,2477.7,3.27600258]
[1730033583037,1.24874,2477.9,2477.7,1.45964392]
[1730033584144,1.24874,2477.9,2477.7,0.40406]
[1730033584439,1.24874,2477.9,2477.7,1.45964392]
[1730033584639,0.8447,2477.9,2477.7,1.05558392]
[1730033584840,0.40404,2477.8,2477.7,1.05558392]
[1730033585041,0.8447,2477.9,2477.6,4.69848392]
[1730033585339,0.40406,2477.7,2477.6,4.69848392]
[1730033585543,0.40406,2477.7,2477.6,4.26338392]
[1730033585846,0.40406,2477.7,2477.6,3.2078]
[1730033586741,0.40408,2477.6,2477.5,1.05558392]
[1730033586944,0.82968,2477.6,2477.5,1.05558392]
[1730033587243,0.82968,2477.6,2477.4,2.32238392]
[1730033587444,0.82968,2477.6,2477.5,1.05558392]
[1730033587636,0.82968,2477.6,2477.4,2.32238392]
[1730033587936,0.82968,2477.6,2477.5,1.45967392]
[1730033588148,0.82968,2477.6,2477.4,1.45968392]
[1730033588338,0.8596,2477.5,2477.4,1.45968392]
[1730033588543,1.26369,2477.5,2477.4,3.40243067]
[1730033588738,1.26369,2477.5,2477.4,1.45968392]
[1730033589343,1.26369,2477.5,2477.4,1.05558392]
[1730033589648,1.26369,2477.5,2477.4,1.45969392]
[1730033589946,1.26369,2477.5,2477.4,0.40411]
[1730033590142,0.8596,2477.5,2477.4,0.40411]
[1730033590345,1.2637,2477.5,2477.4,0.40411]
[1730033591039,1.2637,2477.5,2477.4,1.45969392]
[1730033591244,1.2637,2477.5,2477.4,1.05558392]
[1730033591440,0.8596,2477.5,2477.3,4.26338392]
[1730033591651,0.40411,2477.4,2477.3,4.26338392]
[1730033592142,0.40411,2477.4,2477.3,3.2078]
[1730033598750,0.8596,2477.5,2477.2,0.40414]
[1730033598948,0.40414,2477.2,2477.1,3.61195]
[1730033602649,0.82054,2477.3,2477.2,0.40414]
[1730033603551,0.4164,2477.3,2477.1,3.6608]
[1730033603857,0.40414,2477.2,2477.1,4.06494]
[1730033605654,0.40414,2477.2,2477.1,3.6608]
[1730033605955,0.40414,2477.2,2477.1,4.06496]
[1730033607258,0.82054,2477.3,2477.2,0.40414]
[1730033607945,0.40414,2477.2,2477.1,4.06494]
[1730033608743,0.40414,2477.2,2477.1,3.61194]
[1730033608947,0.40414,2477.2,2477.1,3.2078]
[1730033609152,0.40414,2477.2,2477.1,3.61196]
[1730033609352,0.40414,2477.2,2477.1,3.2078]
[1730033609554,0.40414,2477.2,2477.1,3.61196]
[1730033611264,0.40414,2477.2,2477.1,0.40416]
[1730033611454,0.40414,2477.2,2477.1,3.61196]
[1730033612060,0.40414,2477.2,2477.1,0.40416]
[1730033612459,0.40414,2477.2,2477.1,3.61196]
[1730033614056,0.82054,2477.3,2477.2,0.40414]
[1730033629367,0.40416,2477.2,2477.1,0.40415]
[1730033630363,0.40416,2477.2,2477.1,1.45973392]
[1730033630770,0.40416,2477.2,2477.1,1.05558392]
[1730033630977,0.40416,2477.1,2477.0,4.26338392]
[1730033631163,0.8328,2477.1,2476.8,1.05558392]
[1730033631467,0.40419,2476.9,2476.8,1.45978392]
[1730033634280,0.84019,2477.0,2476.9,0.40419]
[1730033634487,0.436,2477.0,2476.8,1.05558392]
[1730033634686,0.40419,2476.9,2476.8,1.45977392]
[1730033634889,4.44179,2476.9,2476.8,1.05558392]
[1730033635086,4.0376,2476.9,2476.7,1.05558392]
[1730033635283,4.44181,2476.8,2476.7,1.45980392]
[1730033635478,0.40421,2476.8,2476.7,1.45980392]
[1730033635684,4.44181,2476.8,2476.7,1.45980392]
[1730033635882,4.44181,2476.8,2476.7,1.05558392]
[1730033636083,4.44181,2476.8,2476.7,1.45980392]
[1730033636286,0.40422,2476.7,2476.6,4.66761392]
[1730033636493,1.318,2476.7,2476.6,4.66761392]
[1730033641888,0.42169934,2480.1,2476.7,1.01056]
[1730033641889,1.01031,2477.4,2476.7,1.01056]
[1730033642085,0.8714,2477.2,2477.1,0.40414]
[1730033642783,3.2078,2477.6,2477.0,1.05558392]
[1730033643087,0.8486,2477.5,2477.4,0.40411]
[1730033652287,0.40408,2477.6,2477.5,0.40409]
[1730033652492,3.61182,2478.0,2477.5,1.01024]
[1730033652695,3.61182,2478.0,2477.9,0.40403]
[1730033652894,3.61182,2478.0,2477.8,0.40403]
[1730033652895,0.40403,2477.9,2477.8,0.40403]
[1730033653494,3.61183,2478.0,2477.9,0.40403]
[1730033653894,3.61183,2478.0,2477.8,0.40403]
[1730033653895,0.40404,2477.9,2477.8,0.40403]
[1730033654586,3.2078,2478.0,2477.5,2.06582392]
[1730033654788,1.69997,2477.8,2477.7,0.40405]
[1730033658589,1.69995,2477.8,2477.7,0.40406]
[1730033659493,0.40406,2477.7,2477.6,0.40406]
[1730033659896,1.2959,2477.8,2477.4,3.2078]
[1730033660096,0.40408,2477.6,2477.5,0.40408]
[1730033660598,0.40408,2477.6,2477.4,3.2078]
[1730033660599,0.40409,2477.5,2477.4,3.6119]
[1730033660895,0.4454,2477.5,2477.4,3.6119]
[1730033661294,0.84949,2477.5,2477.4,3.6119]
[1730033661896,0.84949,2477.5,2477.4,3.61191]
[1730033662294,0.84949,2477.5,2477.4,3.2078]
[1730033665000,0.84949,2477.5,2477.4,3.61191]
[1730033665600,0.84949,2477.5,2477.1,4.6351]
[1730033665601,0.4454,2477.5,2477.1,4.6351]
[1730033665897,1.27071,2477.4,2477.3,0.40411]
[1730033666298,0.8666,2477.4,2477.3,0.40411]
[1730033666608,1.27071,2477.4,2477.3,0.40411]
[1730033667104,0.8666,2477.4,2477.1,4.68028392]
[1730033667403,0.40413,2477.3,2477.2,0.40413]
[1730033667798,1.27072,2477.4,2477.3,0.40412]
[1730033668401,0.8666,2477.4,2477.1,4.68028392]
[1730033668604,0.8666,2477.4,2477.2,0.40413]
[1730033668605,0.40413,2477.3,2477.2,0.40413]
[1730033669996,1.27072,2477.4,2477.3,0.40412]
[1730033670198,1.27072,2477.4,2477.1,4.68028392]
[1730033670199,0.40413,2477.3,2477.2,0.40413]
[1730033670801,0.8666,2477.4,2477.1,4.68028392]
[1730033670997,1.27072,2477.4,2477.3,0.40412]
[1730033671500,0.40413,2477.3,2477.2,0.40413]
[1730033671904,0.8666,2477.4,2477.2,0.40413]
[1730033672108,1.27072,2477.4,2477.3,0.40412]
[1730033673600,0.40414,2477.3,2477.2,0.40414]
[1730033674608,1.27073,2477.4,2477.3,0.40412]
[1730033674805,0.8666,2477.4,2477.1,3.2078]
[1730033675005,0.40413,2477.3,2477.2,0.40413]
[1730033678709,0.40414,2477.2,2477.1,3.61195]
[1730033678900,0.40414,2477.2,2477.1,0.40415]
[1730033680411,0.40414,2477.3,2477.2,0.40414]
[1730033682611,0.40412,2477.3,2477.2,0.40414]
[1730033684312,0.44,2477.4,2477.3,0.40412]
[1730033684516,1.8471,2477.9,2477.3,5.04712]
[1730033684712,0.40407,2477.7,2477.6,0.40407]
[1730033684911,0.40406,2477.7,2477.6,0.40407]
[1730033688219,0.40409,2477.6,2477.5,0.40408]
[1730033691116,0.84439,2477.6,2477.5,0.40408]
[1730033692211,0.40409,2477.5,2477.4,0.84019]
[1730033698320,0.40409,2477.5,2477.2,0.4303]
[1730033698321,4.0368,2477.5,2477.1,5.27376786]
[1730033698622,0.82583,2477.4,2477.3,0.40411]
[1730033700819,0.82583,2477.4,2477.1,5.15357786]
[1730033700820,0.4217,2477.4,2477.1,5.15357786]
[1730033701019,0.40414,2477.3,2477.2,0.40413]
[1730033701223,0.84114,2477.3,2477.2,0.40413]
[1730033702015,0.40414,2477.2,2477.1,5.10671786]
[1730033702424,0.40414,2477.2,2477.1,4.05114]
[1730033702910,0.40414,2477.2,2477.1,5.10671786]
[1730033703115,0.40414,2477.2,2477.1,4.05114]
[1730033703314,0.40414,2477.2,2477.1,5.10671786]
[1730033704128,0.40414,2477.2,2477.1,7.46912234]
[1730033704328,0.40414,2477.2,2477.1,4.26132234]
[1730033704531,0.40414,2477.2,2477.1,5.88575555]
[1730033705422,0.437,2477.3,2477.1,5.48161555]
[1730033705619,0.84113,2477.3,2477.2,3.82348588]
[1730033706925,0.437,2477.3,2477.2,3.82348588]
[1730033707127,0.437,2477.3,2477.2,3.82436874]
[1730033707327,0.4217,2477.4,2477.3,0.40412]
[1730033707629,0.40409,2477.6,2477.5,0.40408]
[1730033708129,4.46287,2477.7,2477.6,0.40408]
[1730033708423,4.02767,2477.7,2477.6,0.40408]
[1730033708722,4.02767,2477.7,2477.6,1.46075503]
[1730033709320,4.46287,2477.7,2477.6,1.46075503]
[1730033709818,0.851,2477.7,2477.6,1.46075503]
[1730033710219,0.4158,2477.7,2477.6,1.46075503]
[1730033710523,0.83914,2477.9,2477.8,0.40404]
[1730033710919,0.4351,2477.9,2477.8,0.40404]
[1730033711630,0.83913,2477.9,2477.8,0.40404]
[1730033712929,0.4351,2477.9,2477.7,0.4111]
[1730033713121,0.40407,2477.7,2477.6,0.40406]
[1730033715022,0.40407,2477.7,2477.5,0.8292]
[1730033715023,0.40408,2477.6,2477.5,1.23328]
[1730033715222,1.23178,2477.6,2477.5,1.35963409]
[1730033716029,1.23178,2477.6,2477.5,1.23328]
[1730033716626,0.8277,2477.6,2477.5,1.23328]
[1730033718824,0.8277,2477.6,2477.5,0.8292]
[1730033718825,1.23178,2477.6,2477.5,0.8292]
[1730033719028,1.23178,2477.6,2477.5,0.82219]
[1730033719329,1.23178,2477.6,2477.5,3.71254384]
[1730033720322,0.8277,2477.6,2477.5,3.71254384]
[1730033720936,0.8277,2477.6,2477.5,1.87886503]
[1730033721233,0.8277,2477.6,2477.5,3.71240374]
[1730033721734,1.23178,2477.6,2477.5,3.71240374]
[1730033722030,0.8277,2477.6,2477.5,3.71240374]
[1730033722826,1.23178,2477.6,2477.5,3.71240374]
[1730033724735,0.8277,2477.6,2477.5,3.71240374]
[1730033724936,0.8277,2477.6,2477.5,3.71105349]
[1730033725330,0.4142,2477.6,2477.5,3.711174]
[1730033725632,0.81828,2477.6,2477.5,3.71119604]
[1730033725834,0.81828,2477.6,2477.5,3.7112127]
[1730033726032,0.4142,2477.6,2477.5,3.7112127]
[1730033726535,0.81828,2477.6,2477.5,3.7112127]
[1730033727229,0.81828,2477.6,2477.5,0.82219]
[1730033727429,0.4142,2477.6,2477.5,0.82219]
[1730033728633,0.81828,2477.6,2477.5,0.82219]
[1730033728928,0.4142,2477.6,2477.5,0.82219]
[1730033730229,0.4142,2477.6,2477.5,1.87765733]
[1730033731134,0.4142,2477.6,2477.5,2.00400618]
[1730033732238,0.4142,2477.6,2477.5,1.87765733]
[1730033734336,0.4142,2477.6,2477.5,4.2594257]
[1730033734540,0.4142,2477.6,2477.5,7.4672257]
[1730033735137,0.4142,2477.6,2477.5,5.61472033]
[1730033735339,0.4142,2477.6,2477.5,7.46723189]
[1730033736149,0.4249,2477.8,2477.7,0.40406]
[1730033736449,0.4249,2477.8,2477.7,3.31179089]
[1730033736949,0.453,2477.9,2477.8,0.40404]
[1730033737245,0.453,2477.9,2477.8,6.51937976]
[1730033739447,0.453,2477.9,2477.8,3.31157976]
[1730033739649,0.453,2477.9,2477.8,6.51937976]
[1730033739951,0.453,2477.9,2477.8,4.66706713]
[1730033741354,0.453,2477.9,2477.8,1.45926713]
[1730033741553,0.453,2477.9,2477.8,4.66706713]
[1730033742554,0.453,2477.9,2477.8,3.61184]
[1730033742946,0.453,2477.9,2477.8,4.66706713]
[1730033743143,0.453,2477.9,2477.8,3.61184]
[1730033743847,0.453,2477.9,2477.8,4.66706713]
[1730033744047,0.453,2477.9,2477.8,3.61184]
[1730033744560,0.453,2477.9,2477.8,4.66706713]
[1730033746455,0.453,2477.9,2477.8,3.61184]
[1730033746857,0.453,2477.9,2477.8,0.40404]
[1730033747159,0.453,2477.9,2477.8,4.66706713]
[1730033750357,0.453,2477.9,2477.8,4.26302713]